[Event "Titled Tuesday Blitz October 31 Early 2023"]
[White "Kuznetsova, Olga"]
[Black "Ergali_Suleimen"]
[WhiteFideId "4191323"]
[WhiteElo "2425"]
[BlackElo "2609"]
[Result "1-0"]
[Round "5"]
[TimeControl "180+1"]
[Date "2023.10.31"]
[WhiteClock "0:00:51"]
[BlackClock "0:00:02"]
[Board "84"]

1. d4 {[%clk 0:03:00]}  Nf6 {[%clk 0:02:59]} 2. Nc3 {[%clk 0:02:58]}  d5 {[%clk 0:02:58]} 3. Bf4 {[%clk 0:02:57]}  e6 {[%clk 0:02:58]} 4. e3 {[%clk 0:02:57]}  a6 {[%clk 0:02:57]} 5. Bd3 {[%clk 0:02:56]}  c5 {[%clk 0:02:56]} 6. Nf3 {[%clk 0:02:56]}  Nc6 {[%clk 0:02:55]} 7. Ne5 {[%clk 0:02:56]}  Nxe5 {[%clk 0:02:47]} 8. Bxe5 {[%clk 0:02:55]}  b5 {[%clk 0:02:43]} 9. O-O {[%clk 0:02:55]}  Be7 {[%clk 0:02:37]} 10. dxc5 {[%clk 0:02:51]}  Bxc5 {[%clk 0:02:31]} 11. a4 {[%clk 0:02:51]}  b4 {[%clk 0:02:31]} 12. Ne2 {[%clk 0:02:51]}  O-O {[%clk 0:02:31]} 13. Nd4 {[%clk 0:02:49]}  Bb7 {[%clk 0:02:29]} 14. Qf3 {[%clk 0:02:30]}  Ne4 {[%clk 0:02:27]} 15. Bxe4 {[%clk 0:02:23]}  dxe4 {[%clk 0:02:28]} 16. Qg3 {[%clk 0:02:17]}  g6 {[%clk 0:02:12]} 17. Rad1 {[%clk 0:02:16]}  Qe7 {[%clk 0:02:09]} 18. Nb3 {[%clk 0:02:11]}  Bd5 {[%clk 0:01:36]} 19. Nxc5 {[%clk 0:02:08]}  Qxc5 {[%clk 0:01:37]} 20. Bd6 {[%clk 0:02:07]}  Qxc2 {[%clk 0:01:37]} 21. Bxf8 {[%clk 0:02:07]}  Rxf8 {[%clk 0:01:38]} 22. Qe5 {[%clk 0:02:04]}  Qxa4 {[%clk 0:01:38]} 23. Rc1 {[%clk 0:02:02]}  Qb5 {[%clk 0:01:33]} 24. Rc7 {[%clk 0:02:02]}  a5 {[%clk 0:01:31]} 25. Rfc1 {[%clk 0:01:59]}  Qa6 {[%clk 0:01:07]} 26. h4 {[%clk 0:01:49]}  h5 {[%clk 0:01:03]} 27. Rd7 {[%clk 0:01:33]}  a4 {[%clk 0:00:57]} 28. Rcc7 {[%clk 0:01:30]}  a3 {[%clk 0:00:56]} 29. bxa3 {[%clk 0:01:28]}  bxa3 {[%clk 0:00:56]} 30. Ra7 {[%clk 0:01:16]}  Qd3 {[%clk 0:00:50]} 31. Qf6 {[%clk 0:01:15]}  e5 {[%clk 0:00:22]} 32. Qxg6+ {[%clk 0:01:07]}  Kh8 {[%clk 0:00:18]} 33. Qxh5+ {[%clk 0:01:04]}  Kg8 {[%clk 0:00:18]} 34. Qg5+ {[%clk 0:01:04]}  Kh7 {[%clk 0:00:17]} 35. Qf5+ {[%clk 0:00:59]}  Kg8 {[%clk 0:00:16]} 36. Qxe5 {[%clk 0:00:57]}  Qd1+ {[%clk 0:00:10]} 37. Kh2 {[%clk 0:00:57]}  Qg4 {[%clk 0:00:05]} 38. Rxd5 {[%clk 0:00:52]}  Qxh4+ {[%clk 0:00:05]} 39. Kg1 {[%clk 0:00:53]}  a2 {[%clk 0:00:02]} 40. Qg5+ {[%clk 0:00:51]} 1-0


[Site "https://www.chess.com"]

[Event "Titled Tuesday Blitz October 31 Early 2023"]
[White "Bodnaruk, Anastasia"]
[Black "Ziatdinov, Raset"]
[WhiteFideId "4181751"]
[BlackFideId "2015323"]
[WhiteElo "2606"]
[BlackElo "2417"]
[Result "1-0"]
[Round "5"]
[TimeControl "180+1"]
[Date "2023.10.31"]
[WhiteClock "0:00:19"]
[BlackClock "0:00:05"]
[Board "87"]

1. e4 {[%clk 0:02:59]}  c5 {[%clk 0:02:57]} 2. Nc3 {[%clk 0:02:59]}  Nc6 {[%clk 0:02:57]} 3. Bb5 {[%clk 0:02:58]}  g6 {[%clk 0:02:56]} 4. Bxc6 {[%clk 0:02:56]}  bxc6 {[%clk 0:02:55]} 5. d3 {[%clk 0:02:56]}  Bg7 {[%clk 0:02:54]} 6. f4 {[%clk 0:02:54]}  d6 {[%clk 0:02:54]} 7. Nf3 {[%clk 0:02:54]}  Nf6 {[%clk 0:02:54]} 8. O-O {[%clk 0:02:54]}  O-O {[%clk 0:02:54]} 9. Kh1 {[%clk 0:02:49]}  Rb8 {[%clk 0:02:50]} 10. Rb1 {[%clk 0:02:48]}  Ne8 {[%clk 0:02:47]} 11. Be3 {[%clk 0:02:42]}  Nc7 {[%clk 0:02:45]} 12. d4 {[%clk 0:02:40]}  cxd4 {[%clk 0:02:38]} 13. Bxd4 {[%clk 0:02:35]}  f6 {[%clk 0:02:31]} 14. Bxa7 {[%clk 0:02:32]}  Rb7 {[%clk 0:02:25]} 15. Be3 {[%clk 0:02:28]}  e5 {[%clk 0:02:19]} 16. Qd2 {[%clk 0:02:14]}  Ne6 {[%clk 0:02:16]} 17. fxe5 {[%clk 0:02:02]}  dxe5 {[%clk 0:02:08]} 18. Qxd8 {[%clk 0:01:52]}  Rxd8 {[%clk 0:02:08]} 19. b3 {[%clk 0:01:53]}  f5 {[%clk 0:02:06]} 20. Rfd1 {[%clk 0:01:44]}  Rbd7 {[%clk 0:02:02]} 21. Rxd7 {[%clk 0:01:43]}  Rxd7 {[%clk 0:02:02]} 22. a4 {[%clk 0:01:32]}  Nd4 {[%clk 0:01:51]} 23. Ne1 {[%clk 0:01:23]}  Bf8 {[%clk 0:01:39]} 24. exf5 {[%clk 0:01:15]}  Bb4 {[%clk 0:01:35]} 25. Ne4 {[%clk 0:01:12]}  Rf7 {[%clk 0:01:18]} 26. f6 {[%clk 0:00:56]}  Bxe1 {[%clk 0:01:11]} 27. Rxe1 {[%clk 0:00:55]}  Nxc2 {[%clk 0:01:10]} 28. Re2 {[%clk 0:00:56]}  Nxe3 {[%clk 0:01:09]} 29. Rxe3 {[%clk 0:00:56]}  Bf5 {[%clk 0:01:10]} 30. Nc5 {[%clk 0:00:50]}  Rxf6 {[%clk 0:01:08]} 31. Rxe5 {[%clk 0:00:50]}  Bc2 {[%clk 0:00:56]} 32. Kg1 {[%clk 0:00:47]}  Rf4 {[%clk 0:00:54]} 33. a5 {[%clk 0:00:44]}  Rd4 {[%clk 0:00:37]} 34. a6 {[%clk 0:00:36]}  Rd1+ {[%clk 0:00:37]} 35. Kf2 {[%clk 0:00:37]}  Ra1 {[%clk 0:00:37]} 36. Re2 {[%clk 0:00:28]}  Bd1 {[%clk 0:00:33]} 37. Re8+ {[%clk 0:00:25]}  Kf7 {[%clk 0:00:32]} 38. Rc8 {[%clk 0:00:25]}  Ra2+ {[%clk 0:00:27]} 39. Ke3 {[%clk 0:00:25]}  Ra3 {[%clk 0:00:26]} 40. Kd4 {[%clk 0:00:20]}  Bg4 {[%clk 0:00:15]} 41. Rxc6 {[%clk 0:00:19]}  Bd1 {[%clk 0:00:10]} 42. Rc7+ {[%clk 0:00:19]}  Kf6 {[%clk 0:00:10]} 43. a7 {[%clk 0:00:20]}  h5 {[%clk 0:00:05]} 44. Na4 {[%clk 0:00:19]} 1-0


[Site "https://www.chess.com"]

[Event "Titled Tuesday Blitz October 31 Early 2023"]
[White "Mndapoetzz04"]
[Black "La Villa Rivas, Marlon Javier"]
[BlackFideId "3519546"]
[WhiteElo "2558"]
[BlackElo "2399"]
[Result "1-0"]
[Round "5"]
[TimeControl "180+1"]
[Date "2023.10.31"]
[WhiteClock "0:00:40"]
[BlackClock "0:00:09"]
[Board "96"]

1. d4 {[%clk 0:02:56]}  Nf6 {[%clk 0:02:59]} 2. Bf4 {[%clk 0:02:56]}  d5 {[%clk 0:02:58]} 3. e3 {[%clk 0:02:57]}  c5 {[%clk 0:02:58]} 4. Nc3 {[%clk 0:02:57]}  a6 {[%clk 0:02:51]} 5. dxc5 {[%clk 0:02:56]}  Nc6 {[%clk 0:02:51]} 6. Nf3 {[%clk 0:02:56]}  Bg4 {[%clk 0:02:47]} 7. Be2 {[%clk 0:02:51]}  e6 {[%clk 0:02:47]} 8. Na4 {[%clk 0:02:51]}  Bxc5 {[%clk 0:02:31]} 9. Nxc5 {[%clk 0:02:52]}  Qa5+ {[%clk 0:02:31]} 10. c3 {[%clk 0:02:51]}  Qxc5 {[%clk 0:02:31]} 11. O-O {[%clk 0:02:51]}  O-O {[%clk 0:02:30]} 12. Rc1 {[%clk 0:02:49]}  b5 {[%clk 0:02:29]} 13. a4 {[%clk 0:02:48]}  Ne4 {[%clk 0:02:22]} 14. h3 {[%clk 0:02:44]}  Bf5 {[%clk 0:02:19]} 15. Nd4 {[%clk 0:02:40]}  Nxd4 {[%clk 0:02:17]} 16. cxd4 {[%clk 0:02:33]}  Qb4 {[%clk 0:02:12]} 17. axb5 {[%clk 0:02:30]}  axb5 {[%clk 0:02:12]} 18. f3 {[%clk 0:02:31]}  Nd2 {[%clk 0:02:08]} 19. Rf2 {[%clk 0:02:29]}  Qxb2 {[%clk 0:02:04]} 20. Bf1 {[%clk 0:02:21]}  Ra2 {[%clk 0:01:59]} 21. e4 {[%clk 0:02:15]}  dxe4 {[%clk 0:01:37]} 22. Rxd2 {[%clk 0:02:12]}  Qa3 {[%clk 0:01:26]} 23. Rxa2 {[%clk 0:02:07]}  Qxa2 {[%clk 0:01:27]} 24. Bxb5 {[%clk 0:02:00]}  exf3 {[%clk 0:01:25]} 25. Qxf3 {[%clk 0:02:01]}  h6 {[%clk 0:01:19]} 26. Bc4 {[%clk 0:01:45]}  Qb2 {[%clk 0:01:18]} 27. d5 {[%clk 0:01:44]}  exd5 {[%clk 0:01:10]} 28. Bxd5 {[%clk 0:01:39]}  Rd8 {[%clk 0:01:05]} 29. Kh2 {[%clk 0:01:29]}  Bg6 {[%clk 0:00:50]} 30. Rc7 {[%clk 0:01:24]}  Qd4 {[%clk 0:00:50]} 31. Bc4 {[%clk 0:01:11]}  Rb8 {[%clk 0:00:37]} 32. Bxf7+ {[%clk 0:01:02]}  Bxf7 {[%clk 0:00:35]} 33. Rxf7 {[%clk 0:01:02]}  Rb1 {[%clk 0:00:30]} 34. Rf8+ {[%clk 0:00:50]}  Kh7 {[%clk 0:00:26]} 35. Be3 {[%clk 0:00:48]}  Qe5+ {[%clk 0:00:20]} 36. Qf4 {[%clk 0:00:48]}  Qxf4+ {[%clk 0:00:20]} 37. Bxf4 {[%clk 0:00:49]}  Rf1 {[%clk 0:00:19]} 38. Bd6 {[%clk 0:00:49]}  Rd1 {[%clk 0:00:18]} 39. Be5 {[%clk 0:00:49]}  Re1 {[%clk 0:00:18]} 40. Re8 {[%clk 0:00:49]}  Kg6 {[%clk 0:00:17]} 41. Re7 {[%clk 0:00:49]}  Kf5 {[%clk 0:00:17]} 42. Bd6 {[%clk 0:00:50]}  Rd1 {[%clk 0:00:17]} 43. Bb4 {[%clk 0:00:50]}  g5 {[%clk 0:00:16]} 44. Rh7 {[%clk 0:00:50]}  Kg6 {[%clk 0:00:16]} 45. Rb7 {[%clk 0:00:50]}  Rb1 {[%clk 0:00:16]} 46. Rb6+ {[%clk 0:00:51]}  Kh5 {[%clk 0:00:15]} 47. Bc5 {[%clk 0:00:51]}  Rxb6 {[%clk 0:00:15]} 48. Bxb6 {[%clk 0:00:51]}  g4 {[%clk 0:00:16]} 49. hxg4+ {[%clk 0:00:48]}  Kxg4 {[%clk 0:00:16]} 50. Be3 {[%clk 0:00:48]}  h5 {[%clk 0:00:17]} 51. Bd2 {[%clk 0:00:40]}  h4 {[%clk 0:00:17]} 52. Be3 {[%clk 0:00:41]}  h3 {[%clk 0:00:09]} 53. g3 {[%clk 0:00:40]} 1-0


[Site "https://www.chess.com"]

[Event "Titled Tuesday Blitz October 31 Early 2023"]
[White "Haitin, Ilja"]
[Black "chess123456s"]
[WhiteFideId "4501764"]
[WhiteElo "2399"]
[BlackElo "2548"]
[Result "1-0"]
[Round "5"]
[TimeControl "180+1"]
[Date "2023.10.31"]
[WhiteClock "0:01:00"]
[BlackClock "0:01:30"]
[Board "97"]

1. Nf3 {[%clk 0:03:00]}  d5 {[%clk 0:02:59]} 2. g3 {[%clk 0:02:59]}  Nd7 {[%clk 0:02:59]} 3. d4 {[%clk 0:02:59]}  Nb6 {[%clk 0:03:00]} 4. Nc3 {[%clk 0:02:59]}  Bf5 {[%clk 0:03:00]} 5. Nh4 {[%clk 0:02:58]}  Bg4 {[%clk 0:03:00]} 6. h3 {[%clk 0:02:56]}  Bh5 {[%clk 0:03:00]} 7. Ng2 {[%clk 0:02:56]}  e6 {[%clk 0:03:00]} 8. Nf4 {[%clk 0:02:56]}  Bg6 {[%clk 0:03:00]} 9. Bg2 {[%clk 0:02:54]}  Nf6 {[%clk 0:02:59]} 10. O-O {[%clk 0:02:47]}  Bd6 {[%clk 0:02:59]} 11. Nxg6 {[%clk 0:02:46]}  hxg6 {[%clk 0:03:00]} 12. e4 {[%clk 0:02:46]}  dxe4 {[%clk 0:02:55]} 13. Nxe4 {[%clk 0:02:47]}  Nxe4 {[%clk 0:02:54]} 14. Bxe4 {[%clk 0:02:45]}  c6 {[%clk 0:02:48]} 15. Bg2 {[%clk 0:02:33]}  O-O {[%clk 0:02:43]} 16. c3 {[%clk 0:02:28]}  Qe7 {[%clk 0:02:41]} 17. Qg4 {[%clk 0:02:25]}  Qf6 {[%clk 0:02:26]} 18. Be4 {[%clk 0:02:15]}  Qd8 {[%clk 0:02:18]} 19. Bc2 {[%clk 0:02:08]}  Qc7 {[%clk 0:02:14]} 20. h4 {[%clk 0:02:07]}  Rfe8 {[%clk 0:02:03]} 21. h5 {[%clk 0:02:04]}  gxh5 {[%clk 0:02:03]} 22. Qxh5 {[%clk 0:02:03]}  g6 {[%clk 0:02:03]} 23. Qh3 {[%clk 0:01:44]}  Bf8 {[%clk 0:02:00]} 24. Kg2 {[%clk 0:01:39]}  Bg7 {[%clk 0:01:54]} 25. Rh1 {[%clk 0:01:39]}  Qe7 {[%clk 0:01:50]} 26. Qh7+ {[%clk 0:01:32]}  Kf8 {[%clk 0:01:50]} 27. Bh6 {[%clk 0:01:31]}  Qf6 {[%clk 0:01:44]} 28. Qh8+ {[%clk 0:01:28]}  Ke7 {[%clk 0:01:44]} 29. Qxg7 {[%clk 0:01:27]}  Qxg7 {[%clk 0:01:44]} 30. Bxg7 {[%clk 0:01:28]}  Rg8 {[%clk 0:01:44]} 31. Be5 {[%clk 0:01:25]}  Nc4 {[%clk 0:01:43]} 32. Bf4 {[%clk 0:01:23]}  b5 {[%clk 0:01:41]} 33. b3 {[%clk 0:01:20]}  Nb6 {[%clk 0:01:41]} 34. Be4 {[%clk 0:01:19]}  Nd5 {[%clk 0:01:40]} 35. Bxd5 {[%clk 0:01:16]}  cxd5 {[%clk 0:01:40]} 36. a4 {[%clk 0:01:13]}  a6 {[%clk 0:01:38]} 37. axb5 {[%clk 0:01:13]}  axb5 {[%clk 0:01:39]} 38. Bg5+ {[%clk 0:01:07]}  Kd7 {[%clk 0:01:31]} 39. Rxa8 {[%clk 0:01:00]}  Rxa8 {[%clk 0:01:30]} 40. Rh7 {[%clk 0:01:00]} 1-0


[Site "https://www.chess.com"]

[Event "Titled Tuesday Blitz October 31 Early 2023"]
[White "Girinath, P.D.S."]
[Black "Bazilius, Augustinas"]
[WhiteFideId "5000572"]
[BlackFideId "12832251"]
[WhiteElo "2357"]
[BlackElo "2532"]
[Result "1-0"]
[Round "5"]
[TimeControl "180+1"]
[Date "2023.10.31"]
[WhiteClock "0:01:00"]
[BlackClock "0:00:04"]
[Board "100"]

1. e4 {[%clk 0:02:54]}  c5 {[%clk 0:02:59]} 2. Nf3 {[%clk 0:02:52]}  e6 {[%clk 0:02:59]} 3. d3 {[%clk 0:02:52]}  d5 {[%clk 0:02:55]} 4. Qe2 {[%clk 0:02:50]}  Nc6 {[%clk 0:02:53]} 5. g3 {[%clk 0:02:43]}  Nf6 {[%clk 0:02:50]} 6. Bg2 {[%clk 0:02:42]}  Be7 {[%clk 0:02:49]} 7. O-O {[%clk 0:02:40]}  O-O {[%clk 0:02:47]} 8. e5 {[%clk 0:02:40]}  Nd7 {[%clk 0:02:45]} 9. c4 {[%clk 0:02:41]}  dxc4 {[%clk 0:02:36]} 10. dxc4 {[%clk 0:02:41]}  Qc7 {[%clk 0:02:35]} 11. Bf4 {[%clk 0:02:35]}  Nd4 {[%clk 0:02:33]} 12. Nxd4 {[%clk 0:02:14]}  cxd4 {[%clk 0:02:34]} 13. Rd1 {[%clk 0:02:14]}  Qb6 {[%clk 0:02:11]} 14. b3 {[%clk 0:01:55]}  Rd8 {[%clk 0:01:56]} 15. Nd2 {[%clk 0:01:50]}  Nf8 {[%clk 0:01:40]} 16. Ne4 {[%clk 0:01:46]}  Ng6 {[%clk 0:01:39]} 17. Bg5 {[%clk 0:01:41]}  Bxg5 {[%clk 0:01:31]} 18. Nxg5 {[%clk 0:01:42]}  Qc7 {[%clk 0:01:19]} 19. f4 {[%clk 0:01:37]}  Rb8 {[%clk 0:01:14]} 20. Rd3 {[%clk 0:01:30]}  b5 {[%clk 0:01:13]} 21. cxb5 {[%clk 0:01:27]}  Rxb5 {[%clk 0:00:46]} 22. Rad1 {[%clk 0:01:20]}  Qb6 {[%clk 0:00:46]} 23. Qh5 {[%clk 0:01:13]}  h6 {[%clk 0:00:38]} 24. Nxf7 {[%clk 0:01:13]}  Kxf7 {[%clk 0:00:34]} 25. Be4 {[%clk 0:01:11]}  Ba6 {[%clk 0:00:16]} 26. Qxg6+ {[%clk 0:01:09]}  Kg8 {[%clk 0:00:16]} 27. Qh7+ {[%clk 0:01:05]}  Kf8 {[%clk 0:00:16]} 28. Bg6 {[%clk 0:01:03]}  Rd7 {[%clk 0:00:03]} 29. Qh8+ {[%clk 0:01:01]}  Ke7 {[%clk 0:00:04]} 30. Qe8# {[%clk 0:01:00]} 1-0


[Site "https://www.chess.com"]

[Event "Titled Tuesday Blitz October 31 Early 2023"]
[White "Heinemann, Josefine"]
[Black "Manon-og, Ramon Jr."]
[WhiteFideId "12900460"]
[BlackFideId "5200776"]
[WhiteElo "2523"]
[BlackElo "2346"]
[Result "0-1"]
[Round "5"]
[TimeControl "180+1"]
[Date "2023.10.31"]
[WhiteClock "0:00:04"]
[BlackClock "0:00:28"]
[Board "102"]

1. e4 {[%clk 0:03:00]}  c5 {[%clk 0:02:59]} 2. Nf3 {[%clk 0:02:55]}  d6 {[%clk 0:02:58]} 3. c3 {[%clk 0:02:53]}  Nf6 {[%clk 0:02:57]} 4. Bd3 {[%clk 0:02:51]}  g6 {[%clk 0:02:57]} 5. Bc2 {[%clk 0:02:51]}  Bg7 {[%clk 0:02:57]} 6. O-O {[%clk 0:02:52]}  O-O {[%clk 0:02:57]} 7. d4 {[%clk 0:02:52]}  b6 {[%clk 0:02:57]} 8. h3 {[%clk 0:02:52]}  Bb7 {[%clk 0:02:57]} 9. Re1 {[%clk 0:02:52]}  Nbd7 {[%clk 0:02:57]} 10. Nbd2 {[%clk 0:02:51]}  Rc8 {[%clk 0:02:56]} 11. d5 {[%clk 0:02:51]}  e6 {[%clk 0:02:52]} 12. c4 {[%clk 0:02:51]}  exd5 {[%clk 0:02:50]} 13. cxd5 {[%clk 0:02:51]}  Re8 {[%clk 0:02:50]} 14. Nc4 {[%clk 0:02:50]}  Nf8 {[%clk 0:02:48]} 15. a4 {[%clk 0:02:49]}  Ba6 {[%clk 0:02:46]} 16. Nfd2 {[%clk 0:02:43]}  Qe7 {[%clk 0:02:40]} 17. Ne3 {[%clk 0:02:23]}  N8d7 {[%clk 0:02:33]} 18. Ra3 {[%clk 0:02:21]}  Nh5 {[%clk 0:02:29]} 19. Ndf1 {[%clk 0:02:10]}  Nf4 {[%clk 0:02:17]} 20. Qf3 {[%clk 0:01:59]}  Nh5 {[%clk 0:01:32]} 21. Ng4 {[%clk 0:01:30]}  Ne5 {[%clk 0:01:25]} 22. Nxe5 {[%clk 0:01:28]}  Qxe5 {[%clk 0:01:26]} 23. b3 {[%clk 0:00:58]}  Qc3 {[%clk 0:01:17]} 24. Qxc3 {[%clk 0:00:56]}  Bxc3 {[%clk 0:01:18]} 25. Bd2 {[%clk 0:00:50]}  Bb4 {[%clk 0:01:06]} 26. Ra2 {[%clk 0:00:46]}  Bxd2 {[%clk 0:00:56]} 27. Nxd2 {[%clk 0:00:45]}  Nf4 {[%clk 0:00:57]} 28. Kh2 {[%clk 0:00:40]}  Nxd5 {[%clk 0:00:55]} 29. Raa1 {[%clk 0:00:34]}  Nb4 {[%clk 0:00:53]} 30. Rac1 {[%clk 0:00:25]}  Nxc2 {[%clk 0:00:53]} 31. Rxc2 {[%clk 0:00:26]}  d5 {[%clk 0:00:54]} 32. e5 {[%clk 0:00:25]}  d4 {[%clk 0:00:54]} 33. f4 {[%clk 0:00:26]}  Bd3 {[%clk 0:00:50]} 34. Rcc1 {[%clk 0:00:25]}  a6 {[%clk 0:00:50]} 35. Nc4 {[%clk 0:00:17]}  Bxc4 {[%clk 0:00:50]} 36. Rxc4 {[%clk 0:00:16]}  Red8 {[%clk 0:00:50]} 37. Rec1 {[%clk 0:00:14]}  a5 {[%clk 0:00:48]} 38. Kg3 {[%clk 0:00:14]}  Kf8 {[%clk 0:00:48]} 39. Kf3 {[%clk 0:00:15]}  Ke7 {[%clk 0:00:48]} 40. Ke4 {[%clk 0:00:15]}  Ke6 {[%clk 0:00:49]} 41. Rd1 {[%clk 0:00:15]}  f5+ {[%clk 0:00:44]} 42. exf6 {[%clk 0:00:15]}  Kxf6 {[%clk 0:00:44]} 43. Kf3 {[%clk 0:00:13]}  Re8 {[%clk 0:00:44]} 44. Rd3 {[%clk 0:00:12]}  Rcd8 {[%clk 0:00:40]} 45. Rc2 {[%clk 0:00:13]}  Re1 {[%clk 0:00:40]} 46. g4 {[%clk 0:00:12]}  Rde8 {[%clk 0:00:39]} 47. b4 {[%clk 0:00:09]}  R1e3+ {[%clk 0:00:36]} 48. Rxe3 {[%clk 0:00:09]}  Rxe3+ {[%clk 0:00:37]} 49. Kf2 {[%clk 0:00:09]}  axb4 {[%clk 0:00:28]} 50. a5 {[%clk 0:00:09]}  b3 {[%clk 0:00:29]} 51. Rb2 {[%clk 0:00:04]}  bxa5 {[%clk 0:00:28]} 0-1


[Site "https://www.chess.com"]

[Event "Titled Tuesday Blitz October 31 Early 2023"]
[White "Reprintsev, Alexander"]
[Black "Jimenez Fernandez, Rebeca"]
[WhiteFideId "14100541"]
[BlackFideId "32070934"]
[WhiteElo "2516"]
[BlackElo "2243"]
[Result "1-0"]
[Round "5"]
[TimeControl "180+1"]
[Date "2023.10.31"]
[WhiteClock "0:01:14"]
[BlackClock "0:00:00"]
[Board "107"]

1. e4 {[%clk 0:02:44]}  g6 {[%clk 0:02:58]} 2. d4 {[%clk 0:02:44]}  Bg7 {[%clk 0:02:57]} 3. Nc3 {[%clk 0:02:44]}  d6 {[%clk 0:02:57]} 4. h4 {[%clk 0:02:44]}  h5 {[%clk 0:02:57]} 5. Nf3 {[%clk 0:02:44]}  a6 {[%clk 0:02:57]} 6. Ng5 {[%clk 0:02:41]}  Nf6 {[%clk 0:02:57]} 7. f3 {[%clk 0:02:41]}  b5 {[%clk 0:02:55]} 8. Be3 {[%clk 0:02:41]}  Bb7 {[%clk 0:02:55]} 9. Qd2 {[%clk 0:02:40]}  Nbd7 {[%clk 0:02:56]} 10. Be2 {[%clk 0:02:38]}  c5 {[%clk 0:02:56]} 11. a4 {[%clk 0:02:12]}  b4 {[%clk 0:02:49]} 12. Nd1 {[%clk 0:02:13]}  cxd4 {[%clk 0:02:48]} 13. Bxd4 {[%clk 0:02:12]}  a5 {[%clk 0:02:45]} 14. Ne3 {[%clk 0:02:12]}  e5 {[%clk 0:02:23]} 15. Nc4 {[%clk 0:02:06]}  O-O {[%clk 0:01:40]} 16. Be3 {[%clk 0:02:04]}  d5 {[%clk 0:01:37]} 17. Nd6 {[%clk 0:01:56]}  Bc6 {[%clk 0:01:32]} 18. exd5 {[%clk 0:01:48]}  Nxd5 {[%clk 0:01:33]} 19. Bc4 {[%clk 0:01:47]}  N7f6 {[%clk 0:00:35]} 20. Ndxf7 {[%clk 0:01:40]}  Rxf7 {[%clk 0:00:33]} 21. Nxf7 {[%clk 0:01:41]}  Kxf7 {[%clk 0:00:32]} 22. O-O-O {[%clk 0:01:40]}  Kf8 {[%clk 0:00:17]} 23. Bg5 {[%clk 0:01:40]}  Qe7 {[%clk 0:00:09]} 24. Bxd5 {[%clk 0:01:29]}  Bxd5 {[%clk 0:00:10]} 25. Bxf6 {[%clk 0:01:29]}  Qxf6 {[%clk 0:00:04]} 26. Qxd5 {[%clk 0:01:29]}  Re8 {[%clk 0:00:04]} 27. g3 {[%clk 0:01:21]}  Bh6+ {[%clk 0:00:03]} 28. Kb1 {[%clk 0:01:19]}  Bg7 {[%clk 0:00:00]} 29. Qd6+ {[%clk 0:01:14]} 1-0


[Site "https://www.chess.com"]

[Event "Titled Tuesday Blitz October 31 Early 2023"]
[White "MIM06"]
[Black "Iljin, Timofey"]
[BlackFideId "14110180"]
[WhiteElo "2194"]
[BlackElo "2503"]
[Result "0-1"]
[Round "5"]
[TimeControl "180+1"]
[Date "2023.10.31"]
[WhiteClock "0:00:01"]
[BlackClock "0:00:09"]
[Board "110"]

1. e4 {[%clk 0:03:00]}  e5 {[%clk 0:02:46]} 2. Nf3 {[%clk 0:03:00]}  Nc6 {[%clk 0:02:45]} 3. Bb5 {[%clk 0:03:00]}  a6 {[%clk 0:02:45]} 4. Ba4 {[%clk 0:03:00]}  Nf6 {[%clk 0:02:46]} 5. d3 {[%clk 0:03:01]}  b5 {[%clk 0:02:46]} 6. Bb3 {[%clk 0:03:01]}  Bc5 {[%clk 0:02:46]} 7. c3 {[%clk 0:03:01]}  d6 {[%clk 0:02:47]} 8. O-O {[%clk 0:03:02]}  O-O {[%clk 0:02:46]} 9. Nbd2 {[%clk 0:03:00]}  Bb6 {[%clk 0:02:46]} 10. Bc2 {[%clk 0:02:58]}  Ne7 {[%clk 0:02:46]} 11. d4 {[%clk 0:02:56]}  Ng6 {[%clk 0:02:46]} 12. a4 {[%clk 0:02:54]}  Bb7 {[%clk 0:02:43]} 13. Re1 {[%clk 0:02:47]}  Re8 {[%clk 0:02:41]} 14. h3 {[%clk 0:02:28]}  h6 {[%clk 0:02:37]} 15. b4 {[%clk 0:02:07]}  Qd7 {[%clk 0:02:35]} 16. Bb2 {[%clk 0:01:36]}  Nf4 {[%clk 0:02:29]} 17. d5 {[%clk 0:01:35]}  N6h5 {[%clk 0:02:24]} 18. c4 {[%clk 0:01:34]}  Nxg2 {[%clk 0:02:14]} 19. Nxe5 {[%clk 0:01:16]}  dxe5 {[%clk 0:01:56]} 20. Qxh5 {[%clk 0:01:14]}  Nf4 {[%clk 0:01:44]} 21. Qf5 {[%clk 0:01:02]}  Nxh3+ {[%clk 0:01:38]} 22. Kg2 {[%clk 0:01:02]}  Nf4+ {[%clk 0:01:33]} 23. Kf1 {[%clk 0:00:55]}  Qxf5 {[%clk 0:01:28]} 24. exf5 {[%clk 0:00:56]}  bxc4 {[%clk 0:01:26]} 25. Nxc4 {[%clk 0:00:56]}  Bxd5 {[%clk 0:01:22]} 26. Nxb6 {[%clk 0:00:55]}  cxb6 {[%clk 0:01:19]} 27. Rxe5 {[%clk 0:00:55]}  Bc4+ {[%clk 0:01:03]} 28. Kg1 {[%clk 0:00:51]}  Nd5 {[%clk 0:00:42]} 29. Be4 {[%clk 0:00:34]}  Rxe5 {[%clk 0:00:39]} 30. Bxe5 {[%clk 0:00:35]}  Re8 {[%clk 0:00:39]} 31. Bxd5 {[%clk 0:00:34]}  Bxd5 {[%clk 0:00:40]} 32. Bd4 {[%clk 0:00:34]}  b5 {[%clk 0:00:38]} 33. axb5 {[%clk 0:00:34]}  axb5 {[%clk 0:00:39]} 34. f6 {[%clk 0:00:34]}  g5 {[%clk 0:00:31]} 35. Kh2 {[%clk 0:00:27]}  Kh7 {[%clk 0:00:31]} 36. Rc1 {[%clk 0:00:26]}  Kg6 {[%clk 0:00:30]} 37. Kg3 {[%clk 0:00:26]}  Bc4 {[%clk 0:00:29]} 38. f4 {[%clk 0:00:22]}  Re4 {[%clk 0:00:25]} 39. Be5 {[%clk 0:00:17]}  Re3+ {[%clk 0:00:25]} 40. Kf2 {[%clk 0:00:14]}  Re2+ {[%clk 0:00:25]} 41. Kg3 {[%clk 0:00:12]}  Bd5 {[%clk 0:00:23]} 42. Rc5 {[%clk 0:00:05]}  Rg2+ {[%clk 0:00:23]} 43. Kh3 {[%clk 0:00:05]}  g4+ {[%clk 0:00:23]} 44. Kh4 {[%clk 0:00:05]}  Bf3 {[%clk 0:00:15]} 45. Rc8 {[%clk 0:00:03]}  Kf5 {[%clk 0:00:11]} 46. Rc3 {[%clk 0:00:01]}  Rh2+ {[%clk 0:00:11]} 47. Kg3 {[%clk 0:00:01]}  Rh3+ {[%clk 0:00:11]} 48. Kf2 {[%clk 0:00:02]}  h5 {[%clk 0:00:09]} 49. Rc7 {[%clk 0:00:01]}  Rh2+ {[%clk 0:00:07]} 50. Kg3 {[%clk 0:00:01]}  Rg2+ {[%clk 0:00:06]} 51. Kh4 {[%clk 0:00:01]}  Rh2+ {[%clk 0:00:07]} 52. Kg3 {[%clk 0:00:01]}  Rh3+ {[%clk 0:00:08]} 53. Kf2 {[%clk 0:00:02]}  h4 {[%clk 0:00:08]} 54. Rxf7 {[%clk 0:00:01]}  Bd5 {[%clk 0:00:09]} 55. Rc7 {[%clk 0:00:01]}  g3+ {[%clk 0:00:09]} 56. Kg1 {[%clk 0:00:01]}  Rh1# {[%clk 0:00:09]} 0-1


[Site "https://www.chess.com"]